bitfinex-derivatives/quotes_BTCF0:USTF0_20260131
["timestamp","ask_amount","ask_price","bid_price","bid_amount"]
[1769872424512,0.10081,81351.0,81325.0,0.27261493]
[1769872424513,0.29708528,81348.0,81325.0,0.09972]
[1769872424812,0.29708528,81345.0,81325.0,0.09586605]
[1769872425007,0.29708528,81343.0,81325.0,0.09586605]
[1769872425414,0.29708528,81341.0,81325.0,0.09586605]
[1769872425706,0.29708528,81341.0,81307.0,0.27261493]
[1769872425904,0.10081,81342.0,81307.0,0.27261493]
[1769872425905,0.29708528,81339.0,81308.0,0.424]
[1769872426109,0.29708528,81337.0,81311.0,0.27261493]
[1769872426408,0.10081,81339.0,81311.0,0.27261493]
[1769872426610,0.29708528,81342.0,81311.0,0.27261493]
[1769872427012,0.30939828,81341.0,81311.0,0.27261493]
[1769872427409,0.29708528,81339.0,81311.0,0.27261493]
[1769872429713,0.39789528,81340.0,81314.0,0.27261493]
[1769872429915,0.29708528,81339.0,81314.0,0.27261493]
[1769872431410,0.29708528,81339.0,81309.0,0.012317]
[1769872431708,0.29708528,81339.0,81309.0,0.28493193]
[1769872431906,0.10081,81340.0,81313.0,0.27261493]
[1769872432509,0.29708528,81339.0,81313.0,0.27261493]
[1769872432818,0.29708528,81335.0,81308.0,0.424]
[1769872433210,0.29708528,81331.0,81308.0,0.424]
[1769872433505,0.29708528,81330.0,81308.0,0.424]
[1769872433812,0.29708528,81329.0,81308.0,0.424]
[1769872434012,0.29708528,81328.0,81308.0,0.09972]
[1769872434613,0.29708528,81326.0,81308.0,0.09972]
[1769872434816,0.29708528,81324.0,81308.0,0.09972]
[1769872435113,0.29708528,81328.0,81308.0,0.09972]
[1769872435506,0.29708528,81326.0,81308.0,0.09972]
[1769872435915,0.39789528,81325.0,81308.0,0.09972]
[1769872436113,0.29708528,81325.0,81308.0,0.09972]
[1769872436311,0.10081,81324.0,81308.0,0.09972]
[1769872436614,0.10081,81328.0,81308.0,0.09972]
[1769872436810,0.39789528,81328.0,81308.0,0.09972]
[1769872437003,0.10081,81328.0,81309.0,0.27261493]
[1769872439509,0.09972,81346.0,81316.0,0.27261493]
[1769872439711,0.30939728,81345.0,81318.0,0.27261493]
[1769872439909,0.29708528,81344.0,81318.0,0.27261493]
[1769872440407,0.29708528,81344.0,81319.0,0.09972]
[1769872440611,0.29708528,81342.0,81319.0,0.09972]
[1769872441014,0.09693672,81341.0,81319.0,0.09972]
[1769872441909,0.29708528,81340.0,81319.0,0.0955411]
[1769872442213,0.29708528,81331.0,81305.0,0.42404]
[1769872442512,0.09693672,81341.0,81305.0,0.09972]
[1769872442513,0.30939928,81329.0,81305.0,0.09972]
[1769872442820,0.29708528,81323.0,81305.0,0.09972]
[1769872443015,0.50688,81328.0,81294.0,0.09972]
[1769872443016,0.29708528,81313.0,81294.0,0.09972]
[1769872443320,0.29708528,81311.0,81284.0,0.09972]
[1769872443512,0.29708528,81309.0,81284.0,0.09972]
[1769872443712,0.29708528,81307.0,81284.0,0.09972]
[1769872444120,0.29708528,81305.0,81284.0,0.09972]
[1769872445221,0.29708528,81321.0,81292.0,0.27705903]
[1769872445520,0.09286027,81312.0,81292.0,0.27705903]
[1769872445828,0.09976,81326.0,81296.0,0.27261493]
[1769872446114,0.09976,81326.0,81300.0,0.27261493]
[1769872446309,0.012313,81336.0,81304.0,0.27261493]
[1769872446509,0.10023276,81315.0,81304.0,0.27261493]
[1769872447420,0.28609094,81295.0,81278.0,0.05976033]
[1769872447612,0.28609094,81293.0,81269.0,0.012323]
[1769872447810,0.09976,81293.0,81272.0,0.196803]
[1769872448115,0.08894082,81292.0,81273.0,0.38619129]
[1769872448316,0.08894082,81292.0,81281.0,0.18448]
[1769872448517,0.08894082,81292.0,81274.0,0.28643129]
[1769872448518,0.08894082,81292.0,81282.0,0.18448]
[1769872448716,0.09976,81293.0,81281.0,0.18448]
[1769872448913,0.18870082,81293.0,81282.0,0.18448]
[1769872449110,0.18870082,81293.0,81273.0,0.42412]
[1769872449111,0.08894082,81293.0,81273.0,0.42412]
[1769872449323,0.08894082,81293.0,81274.0,0.28643129]
[1769872449717,0.28609094,81292.0,81273.0,0.09976]
[1769872450413,0.29841094,81292.0,81273.0,0.09976]
[1769872450816,0.28609094,81283.0,81260.0,0.00012798]
[1769872451123,0.28609094,81281.0,81260.0,0.00012798]
[1769872451519,0.08894082,81280.0,81260.0,0.00012798]
[1769872451714,0.08894082,81283.0,81262.0,0.29875529]
[1769872451909,0.06823047,81287.0,81262.0,0.28643129]
[1769872452114,0.08894082,81288.0,81262.0,0.28643129]
[1769872452320,0.08894082,81288.0,81260.0,0.00012798]
[1769872452321,0.28609094,81287.0,81260.0,0.00012798]
[1769872452921,0.28609094,81287.0,81261.0,0.09976]
[1769872453919,0.08894082,81288.0,81269.0,0.29875429]
[1769872454126,0.08894082,81287.0,81269.0,0.28643129]
[1769872454320,0.09976,81296.0,81269.0,0.28643129]
[1769872454623,0.28609094,81294.0,81261.0,0.09976]
[1769872454819,0.08894082,81295.0,81269.0,0.28643129]
[1769872455019,0.08894082,81295.0,81271.0,0.28643129]
[1769872455324,0.08894082,81295.0,81273.0,0.28643129]
[1769872455624,0.08894082,81295.0,81274.0,0.71063129]
[1769872455924,0.08894082,81295.0,81275.0,0.28643129]
[1769872456525,0.28609094,81294.0,81274.0,0.09976]
[1769872460318,0.28609094,81294.0,81260.0,0.00012798]
[1769872460518,0.28609094,81290.0,81261.0,0.012325]
[1769872460714,0.28609094,81288.0,81260.0,0.00012798]
[1769872461431,0.21196626,81287.0,81260.0,0.28655927]
[1769872461624,0.08894082,81287.0,81260.0,0.29888427]
[1769872462126,0.28609094,81286.0,81255.0,0.02327216]
[1769872462629,0.28609094,81286.0,81259.0,0.012325]
[1769872463128,8.794e-05,81285.0,81259.0,0.012325]
[1769872463427,0.28617888,81285.0,81262.0,0.012324]
[1769872463726,8.794e-05,81285.0,81259.0,0.28643129]
[1769872463922,8.794e-05,81285.0,81261.0,0.28643129]
[1769872464119,8.794e-05,81285.0,81261.0,0.38623129]
[1769872464427,8.794e-05,81285.0,81261.0,0.39855529]
[1769872464726,0.28609094,81284.0,81261.0,0.0998]
[1769872465923,0.28609094,81284.0,81262.0,0.012324]
[1769872466121,8.794e-05,81285.0,81262.0,0.012324]
[1769872467029,8.794e-05,81285.0,81265.0,0.012324]
[1769872467838,8.794e-05,81285.0,81271.0,0.012323]
[1769872468024,8.794e-05,81285.0,81272.0,0.0998]
[1769872468224,0.28609094,81298.0,81273.0,0.012323]
[1769872468424,0.28609094,81298.0,81272.0,0.0998]
[1769872468631,0.28609094,81298.0,81272.0,0.112123]
[1769872469330,4.004e-05,81297.0,81272.0,0.112123]
[1769872469532,4.004e-05,81297.0,81275.0,0.012322]
[1769872469724,0.28613098,81297.0,81275.0,0.012322]
[1769872470228,4.004e-05,81297.0,81280.0,0.012322]
[1769872470931,0.28609094,81317.0,81289.0,0.28643129]
[1769872471132,0.01371385,81336.0,81291.0,0.28643129]
[1769872471133,0.28609094,81324.0,81291.0,0.28643129]
[1769872471435,0.28609094,81324.0,81300.0,0.012319]
[1769872471619,0.0998,81330.0,81306.0,0.29874929]
[1769872471824,0.0998,81330.0,81307.0,0.32448]
[1769872472231,0.0998,81330.0,81308.0,0.012317]
[1769872472428,0.35493538,81338.0,81307.0,0.60911129]
[1769872472628,0.28609094,81336.0,81307.0,0.60911129]
[1769872472928,0.28609094,81336.0,81307.0,0.32268]
[1769872473529,0.28609094,81334.0,81307.0,0.32268]
[1769872474437,0.28609094,81326.0,81289.0,0.0998]
[1769872474629,0.28609094,81323.0,81289.0,0.0998]
[1769872474830,0.28609094,81321.0,81289.0,0.0998]
[1769872475030,0.28609094,81319.0,81289.0,0.0998]
[1769872475736,0.28609094,81317.0,81289.0,0.0998]
[1769872476532,0.28609094,81319.0,81294.0,0.012319]
[1769872477133,0.29910689,81317.0,81289.0,0.0998]
[1769872477436,0.10083,81320.0,81290.0,0.29816332]
[1769872478437,0.10083,81320.0,81289.0,0.0998]
[1769872478438,0.10083,81320.0,81295.0,0.28584332]
[1769872478626,0.10083,81320.0,81299.0,0.28584332]
[1769872478627,0.0166707,81320.0,81299.0,0.28584332]
[1769872478936,0.0166707,81320.0,81308.0,0.28584332]
[1769872480943,0.0166707,81320.0,81309.0,0.61149861]
[1769872481142,0.09976,81331.0,81311.0,0.27474161]
[1769872481330,0.27126403,81342.0,81313.0,0.27474161]
[1769872481638,0.09976,81338.0,81313.0,0.27474161]
[1769872482233,0.09976,81338.0,81315.0,0.28705761]
[1769872482934,0.09976,81341.0,81315.0,0.27474161]
[1769872483334,0.09976,81341.0,81317.0,0.012316]
[1769872483736,0.09976,81341.0,81317.0,0.28705761]
[1769872484543,0.27126403,81339.0,81297.0,0.27474161]
[1769872484735,0.27126403,81339.0,81306.0,0.012318]
[1769872485042,0.27126403,81339.0,81309.0,0.012317]
[1769872485342,0.27126403,81337.0,81309.0,0.012317]
[1769872485536,0.30126403,81337.0,81309.0,0.042317]
[1769872485735,0.30126403,81337.0,81309.0,0.30474161]
[1769872486040,0.30126403,81337.0,81312.0,0.27474161]
[1769872486041,0.12976,81337.0,81312.0,0.27474161]
[1769872486436,0.03,81337.0,81313.0,0.012317]
[1769872487245,0.27126403,81335.0,81311.0,0.3244]
[1769872488635,0.27126403,81335.0,81312.0,0.012317]
[1769872489242,0.03,81337.0,81315.0,0.28705761]
[1769872489444,0.03,81337.0,81322.0,0.28705661]
[1769872489744,0.03,81337.0,81324.0,0.27474161]
[1769872490335,0.09741251,81340.0,81334.0,0.012313]
[1769872490536,0.04741251,81340.0,81335.0,0.32436]
[1769872491933,0.04741251,81340.0,81334.0,0.09976]
[1769872492140,0.31867654,81340.0,81315.0,0.09976]
[1769872492340,0.27126403,81336.0,81315.0,0.08976]
[1769872492639,0.27126403,81334.0,81315.0,0.08976]
[1769872493647,0.27126403,81334.0,81315.0,0.08966]
[1769872494238,0.27126403,81332.0,81303.0,0.09976]
[1769872494538,0.27126403,81332.0,81289.0,0.14976]
[1769872494744,0.27126403,81332.0,81290.0,0.27474161]
[1769872495049,0.27126403,81330.0,81294.0,0.01232]
[1769872495240,0.30126403,81330.0,81294.0,0.04222]
[1769872495543,0.27126403,81319.0,81294.0,0.03]
[1769872495743,0.27126403,81317.0,81294.0,0.03]
[1769872495944,0.09976,81316.0,81294.0,0.03]
[1769872496648,0.27126403,81315.0,81294.0,0.03]
[1769872497540,0.09976,81316.0,81294.0,0.03]
[1769872497541,0.27126403,81313.0,81294.0,0.03]
[1769872497741,0.30126403,81313.0,81294.0,0.03]
[1769872497948,0.03,81313.0,81294.0,0.03]
[1769872499042,0.03,81313.0,81295.0,0.28706061]
[1769872499344,0.03,81313.0,81298.0,0.012319]
[1769872499549,0.03,81313.0,81298.0,0.28706061]
[1769872499742,0.09976,81326.0,81298.0,0.28706061]
[1769872499942,0.11976,81326.0,81298.0,0.28706061]
[1769872500646,0.02,81326.0,81300.0,0.27474161]
[1769872500947,0.02,81326.0,81300.0,0.30474161]
[1769872501148,0.02,81326.0,81302.0,0.27474161]
[1769872501550,0.02,81326.0,81306.0,0.012318]
[1769872501738,0.02,81326.0,81306.0,0.042318]
[1769872502353,0.29126403,81326.0,81306.0,0.03]
[1769872502548,0.02,81326.0,81306.0,0.03]
[1769872502848,0.37102403,81325.0,81306.0,0.03]
[1769872503043,0.28358003,81320.0,81293.0,0.09976]
[1769872503241,0.28358003,81320.0,81293.0,0.12976]
[1769872503242,0.27126403,81316.0,81293.0,0.12976]
[1769872503445,0.27126403,81314.0,81293.0,0.12976]
[1769872503650,0.30126403,81314.0,81293.0,0.12976]
[1769872504451,0.03,81314.0,81293.0,0.12976]
[1769872504649,0.03,81314.0,81298.0,0.27474161]
[1769872504858,0.05,81331.0,81307.0,0.28705961]
[1769872505048,0.03,81331.0,81310.0,0.012317]
[1769872505943,0.03,81331.0,81307.0,0.03]
[1769872505944,0.27126403,81330.0,81307.0,0.03]
[1769872506152,0.012316,81319.0,81298.0,0.001]
[1769872506342,0.27126403,81315.0,81298.0,0.03]
[1769872506546,0.27126403,81311.0,81298.0,0.01]
[1769872506746,0.012317,81312.0,81298.0,0.01]
[1769872506747,0.28358103,81310.0,81298.0,0.01]
[1769872506945,0.28358103,81310.0,81286.0,0.32436]
[1769872507253,0.28631084,81307.0,81286.0,0.03]
[1769872507550,0.27399284,81303.0,81286.0,0.03]
[1769872507854,0.09976,81306.0,81286.0,0.03]
[1769872507855,0.27399284,81299.0,81286.0,0.03]
[1769872508550,0.27399284,81293.0,81272.0,0.09976]
[1769872508752,0.27399284,81291.0,81272.0,0.11676]
[1769872509054,0.27399284,81291.0,81262.0,0.012324]
[1769872509246,0.27399284,81291.0,81262.0,0.03]
[1769872509754,0.00010791,81290.0,81262.0,0.03]
[1769872509957,0.27399284,81282.0,81262.0,0.03]
[1769872510146,0.37375284,81281.0,81262.0,0.03]
[1769872510452,0.28642275,81280.0,81262.0,0.03]
[1769872510652,0.28642275,81280.0,81262.0,0.01]
[1769872510854,0.27399284,81266.0,81245.0,0.05]
[1769872511053,0.28631684,81263.0,81245.0,0.01]
[1769872511357,0.09986791,81265.0,81245.0,0.01]
[1769872511957,0.37386075,81265.0,81245.0,0.01]
[1769872512158,0.27399284,81264.0,81245.0,0.01]
[1769872512362,0.27399284,81262.0,81245.0,0.01]
[1769872512946,0.001,81263.0,81246.0,0.02]
[1769872513149,0.09986791,81265.0,81245.0,0.01]
[1769872513150,0.27399284,81264.0,81247.0,0.02]
[1769872513350,0.40464,81268.0,81245.0,0.01]
[1769872513351,0.32399284,81283.0,81249.0,0.28306723]
[1769872513653,0.11976,81283.0,81255.0,0.30306623]
[1769872513851,0.11976,81283.0,81255.0,0.31306623]
[1769872514153,0.11976,81283.0,81258.0,0.02]
[1769872514349,0.11976,81283.0,81259.0,0.0998]
[1769872514760,0.09976,81283.0,81259.0,0.0998]
[1769872518253,0.09976,81283.0,81260.0,0.0998]
[1769872518452,0.09976,81283.0,81260.0,0.1298]
[1769872518659,0.27399284,81278.0,81260.0,0.12560439]
[1769872518959,0.012322,81277.0,81260.0,0.12560439]
[1769872519352,0.12304436,81277.0,81260.0,0.12560439]
[1769872519754,0.012322,81276.0,81260.0,0.12560439]
[1769872520462,0.012322,81277.0,81260.0,0.12560439]
[1769872520957,0.27399284,81274.0,81247.0,0.0998]
[1769872521160,0.27399284,81272.0,81247.0,0.0898]
[1769872521364,0.27399284,81266.0,81247.0,0.0898]
[1769872521555,0.30399284,81266.0,81247.0,0.03]
[1769872522262,0.27399284,81262.0,81247.0,0.03]
[1769872522461,0.27399284,81260.0,81237.0,0.0998]
[1769872522658,0.012325,81259.0,81237.0,0.0998]
[1769872522857,0.28631784,81259.0,81237.0,0.1298]
[1769872523256,0.27399284,81259.0,81237.0,0.1298]
[1769872523859,0.27399284,81257.0,81237.0,0.03]
[1769872524656,0.27399284,81255.0,81237.0,0.03]
[1769872524856,0.30399284,81255.0,81237.0,0.03]
[1769872526164,0.27399284,81248.0,81225.0,0.00013563]
[1769872526365,0.0998,81247.0,81225.0,0.03]
[1769872526569,0.27399284,81246.0,81225.0,0.03]
[1769872527061,0.27399284,81242.0,81225.0,0.03]
[1769872527253,0.27409121,81241.0,81225.0,0.03]
[1769872527758,0.27409121,81241.0,81212.0,0.012332]
[1769872527959,0.27399284,81237.0,81212.0,0.02]
[1769872528159,0.0998,81236.0,81212.0,0.02]
[1769872529067,0.27399284,81235.0,81212.0,0.02]
[1769872529267,0.27399284,81235.0,81212.0,0.30307323]
[1769872529268,9.309e-05,81234.0,81212.0,0.30307323]
[1769872529463,9.309e-05,81234.0,81215.0,0.012331]
[1769872529667,9.309e-05,81234.0,81217.0,0.27074123]
[1769872529966,9.309e-05,81234.0,81217.0,0.29074123]
[1769872530162,0.062326,81254.0,81225.0,0.27074123]
[1769872530361,0.09984,81253.0,81227.0,0.27074123]
[1769872531267,4.254e-05,81252.0,81227.0,0.27074123]
[1769872531958,0.09984,81253.0,81230.0,0.27074123]
[1769872531959,0.09569616,81253.0,81230.0,0.27074123]
[1769872532164,0.09569616,81253.0,81236.0,0.27074123]
[1769872532359,0.09569616,81253.0,81237.0,0.09984]
[1769872533168,0.09569616,81253.0,81237.0,0.112168]
[1769872533372,0.01601703,81254.0,81240.0,0.012328]
[1769872534671,0.01601703,81254.0,81237.0,0.09984]
[1769872535259,0.01601703,81254.0,81236.0,0.03]
[1769872535475,0.30233587,81254.0,81236.0,0.03]
[1769872536065,0.29000987,81254.0,81236.0,0.03]
[1769872536266,0.01601703,81254.0,81236.0,0.30074123]
[1769872536466,0.01601703,81254.0,81239.0,0.012328]
[1769872537965,0.32290086,81271.0,81237.0,0.29444239]
[1769872538171,0.02,81271.0,81248.0,0.30676839]
[1769872538371,0.02,81271.0,81249.0,0.09984]
[1769872538778,0.01965931,81271.0,81251.0,0.29444239]
[1769872538974,0.042321,81288.0,81261.0,0.29444239]
[1769872539184,0.33522186,81288.0,81262.0,0.09984]
[1769872539480,0.29290086,81279.0,81261.0,0.03]
[1769872539672,0.32290086,81279.0,81261.0,0.03]
[1769872540368,0.29290086,81275.0,81249.0,0.09984]
[1769872541078,0.28980183,81273.0,81249.0,0.09984]
[1769872541374,0.31980183,81273.0,81249.0,0.09984]
[1769872541578,0.28980183,81256.0,81229.0,0.09984]
[1769872541777,0.30212783,81251.0,81229.0,0.08902053]
[1769872541968,0.28980183,81243.0,81229.0,0.08902053]
[1769872542172,0.30212983,81242.0,81227.0,0.24541759]
[1769872543688,0.30212983,81238.0,81227.0,0.0432015]
[1769872543892,0.30212983,81238.0,81218.0,0.09984]
[1769872544089,0.33212983,81238.0,81218.0,0.09984]
[1769872544289,0.33212983,81238.0,81219.0,0.00677198]
[1769872544290,0.28980183,81234.0,81219.0,0.00677198]
[1769872544488,0.28980183,81232.0,81202.0,0.012333]
[1769872544686,0.31980183,81232.0,81202.0,0.012333]
[1769872544986,0.28980183,81220.0,81199.0,0.09984]
[1769872545190,0.41964183,81220.0,81199.0,0.09984]
[1769872546277,0.28980183,81219.0,81199.0,0.09984]
[1769872546783,0.12984,81220.0,81199.0,0.09984]
[1769872547103,0.03,81220.0,81199.0,0.09984]
[1769872547389,0.12984,81220.0,81195.0,0.012334]
[1769872549191,0.12984,81220.0,81198.0,0.28037033]
[1769872549391,0.12984,81220.0,81200.0,0.28037033]
[1769872550194,0.03,81220.0,81200.0,0.28037033]
[1769872551091,0.03,81220.0,81199.0,0.09984]
[1769872551392,0.012327,81245.0,81213.0,0.28037033]
[1769872551688,0.02,81237.0,81215.0,0.28037033]
[1769872551883,0.28980183,81234.0,81214.0,0.09984]
[1769872552085,0.1355735,81233.0,81214.0,0.09984]
[1769872552791,0.012329,81232.0,81214.0,0.09984]
[1769872553097,0.02,81232.0,81214.0,0.09984]
[1769872553682,0.02,81232.0,81214.0,0.38021033]
[1769872553995,0.02,81232.0,81215.0,0.28037033]
[1769872554593,0.02,81232.0,81215.0,0.28032033]
[1769872554786,0.02,81232.0,81216.0,0.012331]
[1769872554979,0.02,81232.0,81214.0,0.09984]
[1769872554980,0.02,81232.0,81218.0,0.012331]
[1769872555187,0.02,81232.0,81214.0,0.012332]
[1769872555392,0.30980183,81232.0,81213.0,0.02607647]
[1769872555891,0.42537876,81231.0,81213.0,1e-08]
[1769872556095,0.28980183,81231.0,81213.0,1e-08]
[1769872556585,0.30213183,81228.0,81213.0,1e-08]
[1769872556785,0.28980183,81225.0,81213.0,1e-08]
[1769872556985,0.28980183,81223.0,81213.0,1e-08]
[1769872557995,0.13559037,81222.0,81213.0,1e-08]
[1769872558189,0.28980183,81223.0,81213.0,1e-08]
[1769872558590,0.14787686,81222.0,81213.0,1e-08]
[1769872558788,0.012331,81222.0,81213.0,1e-08]
[1769872559197,0.28980183,81221.0,81213.0,1e-08]
[1769872560591,0.28980183,81221.0,81139.0,0.061717]
[1769872560592,0.28980183,81217.0,81188.0,0.28037033]
[1769872560792,0.112212,81216.0,81189.0,0.29270633]
[1769872560994,0.142212,81216.0,81189.0,0.29270633]
[1769872561288,0.42866805,81215.0,81188.0,0.31270633]
[1769872561492,0.12988,81216.0,81194.0,0.28037033]
[1769872561700,0.12988,81216.0,81195.0,0.28037033]
[1769872562395,0.12988,81216.0,81194.0,0.11988]
[1769872562396,0.30213383,81212.0,81194.0,0.11988]
[1769872562597,0.012332,81212.0,81194.0,0.11988]
[1769872563402,0.30213383,81212.0,81194.0,0.11988]
[1769872564293,0.012332,81210.0,81194.0,0.11988]
[1769872564602,0.042332,81210.0,81194.0,0.11988]
[1769872565203,0.14144319,81209.0,81194.0,0.11988]
[1769872565501,0.042332,81210.0,81194.0,0.11988]
[1769872565800,0.14138243,81209.0,81194.0,0.11988]
[1769872566003,0.042332,81210.0,81194.0,0.11988]
[1769872566203,0.14144711,81209.0,81194.0,0.11988]
[1769872566502,0.042332,81210.0,81194.0,0.11988]
[1769872566503,0.14144711,81208.0,81194.0,0.11988]
[1769872566702,0.042332,81210.0,81194.0,0.11988]
[1769872566904,0.14156215,81209.0,81194.0,0.11988]
[1769872567099,0.28103993,81207.0,81184.0,0.00010982]
[1769872567300,0.28103993,81203.0,81184.0,0.00010982]
[1769872567602,0.28103993,81201.0,81184.0,0.00010982]
[1769872568190,0.28103993,81196.0,81184.0,0.00010982]
[1769872568399,0.012335,81196.0,81184.0,0.00010982]
[1769872568594,0.012335,81194.0,81184.0,0.00010982]
[1769872569504,0.012335,81194.0,81184.0,5.982e-05]
[1769872570296,0.012336,81190.0,81184.0,5.982e-05]
[1769872570903,0.29337593,81187.0,81174.0,0.09988]
[1769872571105,0.012337,81180.0,81164.0,0.09988]
[1769872571407,0.012338,81173.0,81151.0,0.37879847]
[1769872571701,0.03,81173.0,81160.0,0.27891847]
[1769872571903,0.00010982,81172.0,81160.0,0.27891847]
[1769872572104,0.00010982,81172.0,81151.0,0.37879847]
[1769872572503,0.012338,81171.0,81151.0,0.09988]
[1769872572699,0.28103993,81169.0,81151.0,0.09988]
[1769872573097,0.28103993,81164.0,81138.0,0.09988]
[1769872573299,0.28103993,81164.0,81143.0,0.27891847]
[1769872573300,0.03,81164.0,81143.0,0.27891847]
[1769872573497,0.12988,81164.0,81143.0,0.27891847]
[1769872573703,0.03,81164.0,81145.0,0.27891847]
[1769872574107,0.012341,81153.0,81120.0,0.27891847]
[1769872574316,0.09997485,81152.0,81130.0,0.27891847]
[1769872574608,9.485e-05,81152.0,81135.0,0.27891847]
[1769872574812,9.485e-05,81152.0,81137.0,0.27891847]
[1769872575015,0.09988,81169.0,81145.0,0.27891847]
[1769872575304,0.12102,81168.0,81145.0,0.30891847]
[1769872575511,0.12102,81168.0,81152.0,0.27891847]
[1769872575808,0.12102,81168.0,81152.0,0.03]
[1769872576008,0.12102,81168.0,81153.0,0.09992]
[1769872577007,0.29337893,81167.0,81153.0,0.09992]
[1769872577313,0.12102,81168.0,81153.0,0.09992]
[1769872577502,0.12102,81168.0,81154.0,0.27891847]
[1769872577702,0.02,81169.0,81154.0,0.27891847]
[1769872578004,0.38095993,81174.0,81152.0,0.03]
[1769872578197,0.37095993,81174.0,81152.0,0.12992]
[1769872578402,0.12992,81174.0,81153.0,0.29125947]
[1769872578601,0.001,81168.0,81153.0,0.27891847]
[1769872578802,0.021,81168.0,81153.0,0.27891847]
[1769872580112,0.02,81168.0,81153.0,0.27891847]
[1769872582801,0.30103993,81168.0,81133.0,0.012344]
[1769872583006,0.01234,81158.0,81138.0,0.42484]
[1769872583214,0.04234,81158.0,81138.0,0.42484]
[1769872583414,0.04234,81158.0,81132.0,0.25891847]
[1769872583710,0.012341,81155.0,81138.0,0.42484]
[1769872584409,0.03,81158.0,81138.0,0.42484]
[1769872584915,0.03,81158.0,81141.0,0.27891847]
[1769872585106,0.001,81155.0,81141.0,0.27891847]
[1769872586715,0.03,81158.0,81141.0,0.27891847]
[1769872586905,0.10084,81176.0,81150.0,0.27891847]
[1769872587102,0.10084,81176.0,81154.0,0.27891847]
[1769872587306,0.02,81175.0,81158.0,0.27891847]
[1769872587503,0.012336,81190.0,81160.0,0.27891847]
[1769872587807,0.042336,81190.0,81165.0,0.27891847]
[1769872588012,0.042336,81190.0,81165.0,0.30891847]
[1769872588215,0.012336,81187.0,81165.0,0.03]
[1769872588407,0.29337593,81183.0,81165.0,0.03]
[1769872588904,0.28103993,81175.0,81148.0,0.05]
[1769872589108,0.28103993,81175.0,81077.0,0.012352]
[1769872589109,0.28103993,81157.0,81131.0,0.02]
[1769872589308,0.03,81157.0,81131.0,0.02]
[1769872589508,0.03,81157.0,81132.0,0.012344]
[1769872589709,0.03,81157.0,81131.0,0.02]
[1769872589916,0.03,81157.0,81133.0,0.12319215]
[1769872590115,0.03,81157.0,81134.0,0.09992]
[1769872590509,0.03,81157.0,81140.0,0.012343]
[1769872590709,0.03,81157.0,81141.0,0.32496]
[1769872591410,0.09992,81171.0,81143.0,0.27891847]
[1769872591719,0.11992,81171.0,81154.0,0.29125947]
[1769872591922,0.02,81171.0,81155.0,0.42488]
[1769872592311,0.02,81171.0,81156.0,0.27891847]
[1769872594921,0.09992,81186.0,81156.0,0.27891847]
[1769872594922,0.09992,81186.0,81164.0,0.012339]
[1769872595122,0.12992,81186.0,81166.0,0.27891847]
[1769872596124,0.03,81186.0,81166.0,0.27891847]
[1769872597826,0.03,81186.0,81165.0,0.42488]
[1769872598131,0.03,81186.0,81166.0,0.29309821]
[1769872600032,0.03,81186.0,81170.0,0.29309821]
[1769872600630,0.01,81188.0,81177.0,0.29309821]
[1769872600825,0.24343759,81221.0,81177.0,0.29309821]
[1769872600826,0.02,81193.0,81178.0,0.29309821]
[1769872601023,0.02,81193.0,81179.0,0.09992]
[1769872601427,0.02,81193.0,81183.0,0.012336]
[1769872601721,0.012333,81206.0,81181.0,0.012337]
[1769872601923,0.03,81206.0,81184.0,0.012336]
[1769872602134,0.012333,81205.0,81184.0,0.03]
[1769872602630,0.29431713,81201.0,81184.0,4.9e-07]
[1769872602828,0.12316256,81204.0,81184.0,4.9e-07]
[1769872603035,0.012334,81201.0,81184.0,4.9e-07]
[1769872603230,0.012333,81205.0,81184.0,4.9e-07]
[1769872603425,0.013333,81205.0,81184.0,4.9e-07]
[1769872603732,0.012334,81202.0,81184.0,4.9e-07]
[1769872604232,0.29431713,81200.0,81184.0,4.9e-07]
[1769872604624,0.29431713,81192.0,81173.0,0.09992]
[1769872604824,0.29431713,81192.0,81173.0,0.09660037]
[1769872605028,0.29431713,81187.0,81173.0,0.09660037]
[1769872605330,0.30665313,81186.0,81167.0,0.42484]
[1769872605534,0.012336,81183.0,81167.0,0.37484]
[1769872605729,0.30665413,81180.0,81167.0,0.09992]
[1769872606025,0.30665413,81180.0,81150.0,0.29286046]
[1769872606026,0.30665513,81176.0,81155.0,0.42484]
[1769872606230,0.33665513,81176.0,81155.0,0.42484]
[1769872606428,0.33665513,81176.0,81155.0,0.41484]
[1769872607232,0.13693814,81175.0,81155.0,0.41484]
[1769872607430,0.012335,81191.0,81155.0,0.41484]
[1769872607431,0.012335,81190.0,81164.0,0.27286046]
[1769872607636,0.032335,81190.0,81165.0,0.42484]
[1769872608227,0.32665213,81190.0,81165.0,0.42484]
[1769872608830,0.30665413,81180.0,81165.0,0.09992]
[1769872609022,0.001,81176.0,81164.0,0.02]
[1769872609332,0.001,81176.0,81152.0,0.09992]
[1769872609333,0.012338,81175.0,81152.0,0.09992]
[1769872609539,0.33665513,81175.0,81152.0,0.09992]
[1769872609731,0.33665513,81175.0,81152.0,0.12992]
[1769872610729,0.03,81175.0,81153.0,0.27286046]
[1769872610930,0.03,81175.0,81155.0,0.27286046]
[1769872611131,0.03,81175.0,81155.0,0.28520146]
[1769872611330,0.03,81175.0,81160.0,0.01234]
[1769872611532,0.03,81175.0,81161.0,0.32492]
[1769872614737,0.03,81175.0,81162.0,0.09992]
[1769872615437,0.03,81175.0,81163.0,0.27286046]
[1769872615627,0.052335,81193.0,81168.0,0.27286046]
[1769872615827,0.03,81193.0,81171.0,0.27286046]
[1769872616027,0.03,81193.0,81176.0,0.27286046]
[1769872616334,0.03,81193.0,81178.0,0.27286046]
[1769872616526,0.0032034,81193.0,81182.0,0.28519746]
[1769872616732,0.001,81193.0,81182.0,0.37278046]
[1769872618140,0.001,81193.0,81182.0,0.09992]
[1769872619538,0.012334,81196.0,81174.0,0.03]
[1769872619746,0.29431713,81192.0,81174.0,0.03]
[1769872620038,0.13007299,81191.0,81174.0,0.03]
[1769872620242,0.022335,81193.0,81174.0,0.03]
[1769872620243,0.30665313,81189.0,81174.0,0.03]